[Event "13th Dolomiti-Forni di Sopra-A 2022"]
[Site "Forni di Sopra"]
[Date "2022.06.18"]
[Round "8.10"]
[White "Tonel, Giulia"]
[Black "Goh, Zi Han"]
[Result "1-0"]
[ECO "B90"]
[WhiteElo "1964"]
[BlackElo "2087"]
[Annotator "RC"]
[PlyCount "81"]
[EventDate "2022.06.13"]
[EventType "swiss"]
[EventCountry "ITA"]
[SourceTitle "playchess.com"]
[Source "ChessBase"]
[SourceQuality "1"]
[TimeControl "40/5400+30:1800+30"]

1. e4 {[%emt 0:00:08]} c5 {[%emt 0:00:33]} 2. Nf3 {[%emt 0:00:20]} d6 {[%emt 0:00:08]} 3. d4 {[%emt 0:00:38]} cxd4 {[%emt 0:00:11]} 4. Nxd4 {[%emt 0:00:08]} Nf6 {[%emt 0:00:56]} 5. Nc3 {[%emt 0:00:20]} a6 {[%emt 0:00:10]} 6. h3 {[%emt 0:00:59]} e5 {[%emt 0:02:00]} 7. Nde2 {[%emt 0:01:32]} b5 {[%emt 0:08:59]} 8. g4 {[%emt 0:04:41]} b4 {[%emt 0:05:13]} 9. Nd5 {[%emt 0:02:28]} Nxd5 {[%emt 0:01:31]} 10. exd5 {[%emt 0:01:16]} Nd7 {[%emt 0:04:24]} 11. Bg2 {[%emt 0:03:07]} Bb7 {[%emt 0:02:35]} 12. Ng3 {[%emt 0:06:48]} Rc8 {[%emt 0:02:17]} 13. Be3 {[%emt 0:10:19]} Qc7 {[%emt 0:15:08]} 14. Qd2 {[%emt 0:07:09]} a5 {[%emt 0:04:01]} 15. a3 {[%emt 0:17:20]} bxa3 {[%emt 0:16:05]} 16. Rxa3 {[%emt 0:00:09]} Qxc2 {[%emt 0:01:47]} 17. Rxa5 {[%emt 0:03:28]} g6 {[%emt 0:10:33]} 18. O-O {[%emt 0:04:04]} Qxd2 {[%emt 0:06:14]} 19. Bxd2 {[%emt 0:03:02]} Be7 {[%emt 0:01:58]} 20. Bb4 {[%emt 0:06:45]} O-O {[%emt 0:08:31]} 21. Ne4 {[%emt 0:26:19]} Ra8 {[%emt 0:03:18]} 22. Rxa8 {[%emt 0:00:00]} Bxa8 {[%emt 0:00:22]} 23. Bxd6 {[%emt 0:00:00]} Bxd6 {[%emt 0:00:14]} 24. Nxd6 {[%emt 0:00:00]} Nf6 {[%emt 0:03:26]} 25. Rd1 {[%emt 0:00:00]} h6 {[%emt 0:01:01]} 26. Nc4 {[%emt 0:00:00]} e4 {[%emt 0:00:21]} 27. d6 {[%emt 0:00:00]} Rd8 {[%emt 0:00:07]} 28. Nb6 {[%emt 0:00:00]} Bc6 {[%emt 0:00:52]} 29. Bf1 {[%emt 0:00:00]} Kf8 {[%emt 0:00:37]} 30. b4 {[%emt 0:00:00]} Rb8 {[%emt 0:01:08]} 31. b5 {[%emt 0:00:00]} Bd7 {[%emt 0:00:28]} 32. Nxd7+ {[%emt 0:00:00]} Nxd7 {[%emt 0:00:04]} 33. Rd4 {[%emt 0:00:00]} Nf6 {[%emt 0:00:41]} 34. Rc4 {[%emt 0:01:04]} Ke8 {[%emt 0:00:23]} 35. Rc7 {[%emt 0:00:21]} Nd5 {[%emt 0:00:06]} 36. Ra7 {[%emt 0:01:41]} Nc3 {[%emt 0:00:56]} 37. Re7+ {[%emt 0:04:54]} Kf8 {[%emt 0:00:29]} 38. Bc4 {[%emt 0:00:00]} Nxb5 {[%emt 0:00:34]} 39. Rxf7+ {[%emt 0:00:00]} Ke8 {[%emt 0:00:03]} 40. d7+ {[%emt 0:00:00]} Kd8 {[%emt 0:00:22]} 41. Rf8+ {[%emt 0:27:16]} 1-0

[Event "13th Dolomiti-Forni di Sopra-A 2022"]
[Site "Forni di Sopra"]
[Date "2022.06.19"]
[Round "9.1"]
[White "Prraneeth Vuppala"]
[Black "Bernadskiy, Vitaliy"]
[Result "1/2-1/2"]
[ECO "B04"]
[WhiteElo "2447"]
[BlackElo "2636"]
[Annotator "TA"]
[PlyCount "175"]
[EventDate "2022.06.13"]
[EventType "swiss"]
[EventCountry "ITA"]
[SourceTitle "playchess.com"]
[Source "ChessBase"]
[SourceQuality "1"]
[TimeControl "40/5400+30:1800+30"]

{[%evp 10,175,35,1,0,-28,-23,-51,-43,-57,-14,-14,0,0,-1,-13,-14,-26,-18,-34,0,-9,0,0,0,0,0,0,0,0,0,-5,0,-3,0,0,0,0,-2,-8,0,-8,-4,-8,-8,-8,-11,-13,-16,-25,-20,-17,-17,-58,-58,-112,-108,-132,-118,-125,-70,-133,-97,-102,-44,-258,-258,-262,-237,-250,-248,-233,-244,-240,-133,-133,-133,-133,-133,-133,-127,-193,-134,-134,-134,-134,-134,-134,-134,-134,-134,-134,-134,-134,-134,-134,-134,-134,-134,-134,-134,-134,-134,-145,-134,-134,-8,-134,-85,-92,-93,-101,-101,-108,-108,-108,-108,-108,-8,-8,-8,-8,-8,-8,0,-8,0,-92,-8,-8,-8,-8,-8,-8,-8,-8,-8,-8,-8,-8,-8,-8,-8,-8,-8,-8,-8,-8,0,0,0,0,0,0,0,0,0,0,0,0,0,0,0,0,0,0,0,0]} 1. e4 {[%emt 0:00:03]} Nf6 {[%emt 0:10:35][%cal Bg8f6,Bf6d5,Bd5b4][%mdl 32]} 2. e5 {[%emt 0:01:40]} Nd5 {[%emt 0:00:20]} 3. d4 {[%emt 0:00:12]} d6 {[%emt 0:00:03]} 4. Nf3 {[%emt 0:00:13][%cal Bg1f3,Bf3e5,Be5d3][%mdl 32]} dxe5 {[%emt 0:00:39]} 5. Nxe5 {[%emt 0:02:39]} c6 {[%emt 0:00:04]} 6. c4 {[%emt 0:04:20]} Nb4 {[%emt 0:00:47][%cal Od8d4] B04: Alekhine's Defence: 4 Nf3.} 7. Nd3 {[%emt 0:29:06]} e5 {[%emt 0:02:07]} 8. Nxe5 {[%emt 0:09:58] [#]} Qxd4 {[%emt 0:00:30] Black is slightly better.} 9. Qe2 {[%emt 0:02:49] [#]} Nc2+ $1 {[%emt 0:01:08]} 10. Qxc2 {[%emt 0:01:13]} Bb4+ {[%emt 0:00:02] [#]} 11. Nc3 $146 {[%emt 0:01:50] Strongly threatening Nf3.} ({Predecessor:} 11. Bd2 Qxe5+ 12. Be2 Bf5 13. Qb3 Bxd2+ 14. Nxd2 O-O 15. Nf1 Na6 16. Ne3 Nc5 17. Qa3 {1-0 (32) Mohacsi,I (1972)-Monus,Z (1990) Hungary 2018}) 11... Qxe5+ {[%emt 0:00:22]} 12. Qe2 {[%emt 0:00:22]} Nd7 {[%emt 0:00:21][%cal Bb8d7,Bd7b6,Bb6a4,Ba4c3][%mdl 32]} 13. Bf4 {[%emt 0:04:02]} Qxe2+ {[%emt 0:00:07]} 14. Bxe2 {[%emt 0:00:05]} Nb6 {[%emt 0:00:10]} 15. Rc1 {[%emt 0:03:32]} Na4 {[%emt 0:02:31]} 16. Bd2 {[%emt 0:02:03]} Nxc3 {[%emt 0:00:28]} 17. Bxc3 {[%emt 0:00:16]} Bxc3+ {[%emt 0:00:23]} 18. Rxc3 {[%emt 0:00:07]} Be6 {[%emt 0:00:24]} 19. Kd2 {[%emt 0:19:24]} O-O-O+ {[%emt 0:00:04]} 20. Kc1 {[%emt 0:00:13]} Kc7 {[%emt 0:00:08]} 21. Rd1 {[%emt 0:00:51]} Rxd1+ {[%emt 0:00:09]} 22. Bxd1 $11 {[%emt 0:01:17][%mdl 4096] Endgame KRB-KRB} Rd8 {[%emt 0:00:06]} 23. b3 {[%emt 0:01:00]} Rd4 {[%emt 0:01:42]} 24. g3 {[%emt 0:02:37]} h6 {[%emt 0:02:41]} 25. Bc2 {[%emt 0:02:03]} Kd6 {[%emt 0:00:47]} 26. Rf3 {[%emt 0:05:56]} b5 {[%emt 0:02:12]} 27. cxb5 {[%emt 0:01:39]} cxb5 {[%emt 0:00:04]} 28. a3 {[%emt 0:01:16]} a5 {[%emt 0:00:22]} 29. Kb2 {[%emt 0:03:05]} b4 {[%emt 0:00:12]} 30. axb4 {[%emt 0:00:47]} axb4 {[%emt 0:00:03]} 31. h4 {[%emt 0:00:44]} Bd5 {[%emt 0:04:52]} 32. Re3 {[%emt 0:00:20]} (32. Rf5 $1 $15) 32... Rd2 $17 {[%emt 0:00:03]} 33. f4 {[%emt 0:00:38]} Kc5 {[%emt 0:00:22]} 34. Kc1 {[%emt 0:00:24]} Rg2 {[%emt 0:00:03]} (34... Rh2 $17 35. f5 Rg2) 35. Kd1 {[%emt 0:00:30]} ({Better is} 35. h5 $15) 35... f6 {[%emt 0:01:42]} 36. Bg6 {[%emt 0:00:31] [#]} Rf2 {[%emt 0:02:16]} (36... Rh2 $1 $17) 37. h5 $2 {[%emt 0:00:43] [#]} ({Only move:} 37. Bc2 $1 $15) 37... Rf3 $1 $19 {[%emt 0:04:07]} 38. Re7 {[%emt 0:00:17]} Rxg3 {[%emt 0:00:39]} ({Stronger than} 38... Bxb3+ 39. Kd2 $17) 39. Rxg7 {[%emt 0:00:08]} Bf3+ {[%emt 0:00:21]} ({Not} 39... Rxb3 40. Rc7+ Kd4 41. Rd7) (39... Bxb3+ 40. Kd2 $17) 40. Kd2 {[%emt 0:00:29]} Bxh5 $1 {[%emt 0:02:36]} 41. f5 {[%emt 0:30:33]} Kd6 {[%emt 0:32:19] Against Rc7} ({Black should play} 41... Bf3 $19 {White must now prevent ...Bd5.} 42. Rc7+ Kd6) 42. Rb7 $17 {[%emt 0:00:00]} Bxg6 {[%emt 0:00:00]} 43. fxg6 {[%emt 0:00:00]} Rxb3 {[%emt 0:00:00] KR-KR} ({Inferior is} 43... Rxg6 44. Rxb4 h5 45. Rh4 $15) 44. Ke2 {[%emt 0:00:00]} Rg3 {[%emt 0:00:00]} 45. g7 {[%emt 0:00:00]} (45. Rxb4 $17 {was necessary.} Ke5 46. Rh4) 45... Ke6 {[%emt 0:00:00]} (45... Kc5 $19 {Threatens to win with ...Rg4.} 46. Rc7+ Kb6) 46. Kf2 {[%emt 0:03:35]} Rg5 {[%emt 0:00:00]} 47. Kf3 {[%emt 0:00:00]} h5 {[%emt 0:00:00]} 48. Rxb4 {[%emt 0:00:00]} Rxg7 {[%emt 0:00:00]} 49. Rb6+ {[%emt 0:00:00]} Kf7 {[%emt 0:00:00]} 50. Rb7+ {[%emt 0:00:00]} Kg6 {[%emt 0:00:00]} 51. Rb5 {[%emt 0:00:00]} Kh6 {[%emt 0:00:00]} 52. Kf4 {[%emt 0:00:00]} Rg4+ {[%emt 0:00:00]} 53. Kf3 {[%emt 0:00:00]} Kg6 {[%emt 0:00:00]} 54. Rb8 {[%emt 0:00:00]} Kg5 {[%emt 0:00:00]} 55. Rg8+ {[%emt 0:00:00]} Kh4 {[%emt 0:00:00]} 56. Rf8 {[%emt 0:00:00]} Rg1 {[%emt 0:00:00]} 57. Rh8 {[%emt 0:00:00]} f5 {[%emt 0:00:00]} (57... Rd1 $17 58. Rg8 f5) 58. Kf2 {[%emt 0:00:00]} (58. Kf4 $11 {remains equal.}) 58... Ra1 {[%emt 0:00:00]} (58... Rg6 $142 59. Kf3 Kg5) 59. Kf3 {[%emt 0:00:00]} Rf1+ {[%emt 0:00:00]} 60. Kg2 {[%emt 0:00:13]} Rf4 {[%emt 0:00:00]} 61. Rh7 {[%emt 0:00:33]} Kg5 {[%emt 0:00:00]} 62. Rg7+ {[%emt 0:00:31]} Kf6 {[%emt 0:00:00]} 63. Rh7 {[%emt 0:00:19]} h4 {[%emt 0:00:00]} (63... Rg4+ $17 64. Kf3 h4) 64. Rh8 $1 $11 {[%emt 0:00:26]} Ke5 {[%emt 0:00:00]} 65. Re8+ {[%emt 0:00:22]} Kd4 {[%emt 0:00:00]} 66. Ra8 {[%emt 0:00:18]} Ke5 {[%emt 0:00:00]} 67. Re8+ $1 {[%emt 0:00:16]} Kf6 {[%emt 0:00:00]} (67... Kd5 $11) 68. Rh8 $1 $17 {[%emt 0:00:16]} Ra4 {[%emt 0:00:00] Inhibits Ra8.} (68... Kg5 $17 69. Rg8+ Kh6) 69. Kf3 $11 {[%emt 0:00:29] The position is equal.} Rg4 {[%emt 0:00:00]} 70. Rf8+ {[%emt 0:00:26]} Ke6 {[%emt 0:00:00]} 71. Re8+ {[%emt 0:00:29]} Kf7 {[%emt 0:00:00]} 72. Rh8 {[%emt 0:00:10]} Kg7 {[%emt 0:00:17]} 73. Rh5 $1 {[%emt 0:00:22]} Kg6 {[%emt 0:00:04]} 74. Rh8 {[%emt 0:00:06]} Rb4 {[%emt 0:00:26]} 75. Rg8+ {[%emt 0:00:29]} Kf7 {[%emt 0:00:16]} 76. Rh8 {[%emt 0:00:10]} Rg4 {[%emt 0:07:41]} 77. Rh7+ {[%emt 0:00:30]} Ke6 {[%emt 0:00:26]} 78. Rh8 {[%emt 0:00:09]} Ke5 {[%emt 0:01:13]} 79. Re8+ {[%emt 0:00:04]} Kd4 {[%emt 0:00:02]} 80. Rd8+ {[%emt 0:01:06]} Kc3 {[%emt 0:00:18]} 81. Rf8 {[%emt 0:00:53]} Rg1 {[%emt 0:05:18]} 82. Kf2 {[%emt 0:00:35]} Rg5 {[%emt 0:00:11]} 83. Rh8 {[%emt 0:00:26]} Rg4 {[%emt 0:00:32]} 84. Rh5 {[%emt 0:00:28]} Rf4+ {[%emt 0:03:11]} 85. Ke3 {[%emt 0:00:13]} Rf1 {[%emt 0:00:22]} 86. Rxh4 {[%emt 0:00:37]} f4+ {[%emt 0:00:02]} 87. Rxf4 {[%emt 0:00:07]} Rxf4 {[%emt 0:00:02]} 88. Kxf4 {[%emt 0:00:02] Whites escaped into a draw.  Weighted Error Value: White=0.19 (very precise) /Black=0.14 (very precise)} 1/2-1/2

[Event "13th Dolomiti-Forni di Sopra-A 2022"]
[Site "Forni di Sopra"]
[Date "2022.06.19"]
[Round "9.2"]
[White "Dardha, Daniel"]
[Black "Karttunen, Mika"]
[Result "1-0"]
[ECO "A29"]
[WhiteElo "2561"]
[BlackElo "2488"]
[Annotator "TA"]
[PlyCount "105"]
[EventDate "2022.06.13"]
[EventType "swiss"]
[EventCountry "ITA"]
[SourceTitle "playchess.com"]
[Source "ChessBase"]
[SourceQuality "1"]
[TimeControl "40/5400+30:1800+30"]

{[%evp 17,105,30,29,29,18,9,0,0,0,0,0,0,0,0,22,5,41,32,32,22,27,16,15,22,75,73,53,53,79,59,116,109,121,120,122,106,135,96,110,66,72,48,71,74,106,105,154,138,144,135,156,171,175,172,175,172,226,227,206,180,256,247,224,184,231,222,230,220,271,260,467,467,608,608,593,590,843,803,687,597,585,517,1181,1114,2643,2147,1969,1759,1817,1580]} 1. c4 {[%emt 0:10:44]} e5 {[%emt 0:00:38]} 2. g3 {[%emt 0:00:16]} Nc6 {[%emt 0:00:21]} 3. Bg2 {[%emt 0:00:48]} Nf6 {[%emt 0:00:10]} 4. Nf3 {[%emt 0:02:15]} g6 {[%emt 0:00:27]} 5. O-O {[%emt 0:01:14]} Bg7 {[%emt 0:00:06]} 6. d4 {[%emt 0:05:33]} exd4 {[%emt 0:00:56]} 7. Nxd4 {[%emt 0:00:06]} Nxd4 {[%emt 0:06:59]} 8. Qxd4 {[%emt 0:00:08]} O-O {[%emt 0:00:11]} 9. Nc3 {[%emt 0:01:27]} d6 {[%emt 0:01:02]} 10. Qd2 {[%emt 0:01:18] A29: English Opening: Four Knights Variation with 4 g3.} c6 {[%emt 0:13:26]} 11. Rd1 {[%emt 0:08:50]} Be6 {[%emt 0:01:31]} 12. Qxd6 {[%emt 0:03:01] The position is equal.} Qxd6 {[%emt 0:01:01]} 13. Rxd6 {[%emt 0:00:05]} Bxc4 {[%emt 0:00:06]} 14. Bg5 {[%emt 0:00:55]} Be6 {[%emt 0:05:23] [#]} 15. Rad1 $146 {[%emt 0:00:24]} ({Predecessor:} 15. e4 h6 16. Be3 Ng4 17. Bd4 Ne5 18. f4 Nc4 19. Bxg7 Kxg7 20. Rd4 c5 21. Rdd1 {0-1 (55) Bartelborth,T-Dueball,J (2445) Germany 1985}) 15... h6 {[%emt 0:03:08]} 16. Be3 {[%emt 0:05:22]} Ne8 {[%emt 0:06:31]} 17. R6d2 {[%emt 0:03:05] Strongly threatening Bc5.} Nc7 {[%emt 0:01:23]} 18. h4 {[%emt 0:05:10]} Rfe8 {[%emt 0:04:37]} 19. Bf4 {[%emt 0:03:37]} Na6 {[%emt 0:06:58]} 20. Bf3 {[%emt 0:09:02]} Nb4 {[%emt 0:11:04]} (20... h5 $11 {keeps the balance.}) 21. a3 $16 {[%emt 0:02:51]} Na6 {[%emt 0:00:35]} 22. Ne4 {[%emt 0:02:05] Against Nc5} Bb3 {[%emt 0:04:35]} 23. Nd6 {[%emt 0:01:30]} Re7 {[%emt 0:01:53]} (23... Bxd1 $14 24. Nxe8 Rxe8) 24. Rc1 {[%emt 0:00:20][%cal Od6b7,Bd1c1,Bc1c4,Bc4e4][%mdl 32] Hoping for Nxb7!} Rf8 {[%emt 0:01:53]} 25. Nc4 {[%emt 0:02:55] Bd6 is the strong threat.} Bxc4 {[%emt 0:04:45]} 26. Rxc4 {[%emt 0:00:11]} Nc7 {[%emt 0:02:21]} 27. Be3 {[%emt 0:02:11]} Ne6 {[%emt 0:04:35]} 28. b4 {[%emt 0:07:10]} a6 {[%emt 0:01:23]} 29. Bb6 {[%emt 0:00:54]} Be5 {[%emt 0:01:19]} 30. Re4 {[%emt 0:01:33] White leaves nothing to chance now.} Bf6 {[%emt 0:04:01]} 31. h5 {[%emt 0:00:31]} g5 {[%emt 0:01:48]} (31... Rfe8 $142) 32. Bg4 {[%emt 0:01:34]} Rfe8 {[%emt 0:00:30]} 33. Re3 {[%emt 0:00:18]} Nf8 {[%emt 0:03:51]} 34. Rxe7 {[%emt 0:03:09] White is more active.} Bxe7 {[%emt 0:00:15]} 35. Bd7 {[%emt 0:00:59]} Ra8 {[%emt 0:00:35]} 36. Bf5 {[%emt 0:00:23]} f6 {[%emt 0:01:15]} (36... Bf6 $142 37. e4 Bc3) 37. Kg2 {[%emt 0:00:44]} Kf7 {[%emt 0:00:15]} 38. f4 {[%emt 0:00:08]} gxf4 {[%emt 0:01:43]} (38... Rb8 $142 39. e3 a5) 39. gxf4 $18 {[%emt 0:00:11]} a5 {[%emt 0:02:01]} 40. Bxa5 {[%emt 0:03:02]} b6 {[%emt 0:01:04]} (40... Ne6 $142 41. e3 Ng7) 41. Bxb6 {[%emt 0:30:53] And now Rd3 would win.} Rxa3 {[%emt 0:31:46]} 42. Rc2 {[%emt 0:01:28]} Ra6 {[%emt 0:00:00]} 43. Be3 {[%emt 0:00:00] aiming for Bd3. A strong pair of Bishops.} ({Much less strong is} 43. Rxc6 Bd8 $18) 43... Ra4 $2 {[%emt 0:00:00] [#]} (43... Bxb4 44. Bd3 Ra5 45. Rxc6 Rxh5) 44. Rxc6 {[%emt 0:00:00] White is clearly winning.} Rxb4 {[%emt 0:00:00]} 45. Rc7 {[%emt 0:00:00]} Rb5 {[%emt 0:00:00]} 46. Bg6+ {[%emt 0:00:00]} Ke6 {[%emt 0:00:00]} 47. f5+ {[%emt 0:00:00]} Kd6 {[%emt 0:00:00]} 48. Bf4+ {[%emt 0:00:00]} Re5 {[%emt 0:00:00]} 49. Rb7 {[%emt 0:00:00]} Nd7 {[%emt 0:00:00]} (49... Kc6 $142 50. Rb2 Nd7 51. Bxh6 Bf8) 50. Be8 {[%emt 0:00:00]} Nc5 {[%emt 0:00:00]} 51. Bxe5+ {[%emt 0:00:00]} fxe5 {[%emt 0:00:00]} 52. Rb6+ {[%emt 0:00:00]} Kc7 {[%emt 0:00:00]} 53. Rxh6 {[%emt 0:00:00] Weighted Error Value: White=0.11 (very precise) /Black=0.29 (precise)} 1-0

[Event "13th Dolomiti-Forni di Sopra-A 2022"]
[Site "Forni di Sopra"]
[Date "2022.06.19"]
[Round "9.4"]
[White "Korneev, Oleg"]
[Black "Podetti, Davide"]
[Result "1-0"]
[ECO "C54"]
[WhiteElo "2521"]
[BlackElo "2238"]
[Annotator "TA"]
[PlyCount "75"]
[EventDate "2022.06.13"]
[EventType "swiss"]
[EventCountry "ITA"]
[SourceTitle "playchess.com"]
[Source "ChessBase"]
[SourceQuality "1"]
[TimeControl "40/5400+30:1800+30"]

{[%evp 22,75,18,6,0,0,13,14,22,20,34,17,17,13,5,0,0,0,15,11,14,0,0,0,10,1,0,2,144,162,142,134,289,259,298,289,263,226,235,62,489,468,469,442,431,418,1504,1619,1583,0,1559,1488,1452,1401,1220,1182]} 1. e4 {[%emt 0:02:15]} e5 {[%emt 0:03:57]} 2. Nf3 {[%emt 0:00:03]} Nc6 {[%emt 0:00:21]} 3. Bc4 {[%emt 0:00:06]} Bc5 {[%emt 0:00:18]} 4. O-O {[%emt 0:00:07]} Nf6 {[%emt 0:00:40]} 5. d3 {[%emt 0:00:03]} d6 {[%emt 0:02:11]} 6. c3 {[%emt 0:00:06]} a6 {[%emt 0:00:31]} 7. Bb3 {[%emt 0:00:07]} Ba7 {[%emt 0:00:47]} 8. Nbd2 {[%emt 1:31:43][%cal Bb1d2,Bd2f1,Bf1g3,Bg3f5][%mdl 32]} O-O {[%emt 0:01:44]} 9. h3 {[%emt 0:00:00]} Be6 {[%emt 0:02:45]} 10. Re1 {[%emt 0:00:00]} h6 {[%emt 0:01:33]} 11. Nf1 {[%emt 0:00:00]} Re8 {[%emt 0:03:41]} 12. N3h2 {[%emt 0:00:00]} d5 {[%emt 0:12:17] C54: Giuoco Piano: 4 c3 Nf6, main lines with 5 d4 and 5 d3.} 13. Qf3 {[%emt 0:00:00]} dxe4 {[%emt 0:06:18]} 14. dxe4 {[%emt 0:00:00]} Bxb3 {[%emt 0:00:33] The position is equal.} 15. axb3 {[%emt 0:00:00]} Qe7 {[%emt 0:00:31]} 16. Ng3 {[%emt 0:00:00] Threatens to win with Nf5.} Qe6 {[%emt 0:01:54]} 17. b4 {[%emt 0:00:00]} Bb6 {[%emt 0:01:53]} 18. Ng4 {[%emt 0:00:00]} Nxg4 {[%emt 0:07:55]} 19. hxg4 {[%emt 0:00:00]} Rad8 {[%emt 0:01:14]} 20. Nf5 {[%emt 0:00:00]} Rd7 {[%emt 0:02:41] [#]} 21. g3 $146 {[%emt 0:00:00]} ({Predecessor:} 21. g5 hxg5 22. Bxg5 f6 23. Be3 Bxe3 24. Nxe3 Ne7 25. Rad1 {½-½ (37) Sedina,E (2326)-Heimann,A (2463) Switzerland 2014}) 21... Ne7 {[%emt 0:10:39]} 22. Kg2 {[%emt 0:00:00]} f6 {[%emt 0:02:15]} 23. Rh1 {[%emt 0:00:00][%cal Oc1h6] aiming for Bxh6!} Nxf5 {[%emt 0:01:34]} 24. gxf5 {[%emt 0:00:00]} Qc4 {[%emt 0:02:40] [#]} (24... Qb3 $1 $11 {remains equal.}) 25. Bxh6 $1 $16 {[%emt 0:00:00][%mdl 512]} gxh6 {[%emt 0:02:08]} 26. Rxh6 {[%emt 0:00:00] Black must now prevent Qh5.} Rf7 $2 {[%emt 0:00:41]} (26... Kf8 $16) 27. Rd1 $1 $18 {[%emt 0:00:00] Threatening mate with Qg4+.} Kf8 {[%emt 0:06:28] [#]} 28. g4 $1 {[%emt 0:00:00][%cal Og4g5]} Ke7 {[%emt 0:08:37]} 29. g5 $1 $40 {[%emt 0:00:00][%mdl 128] gxf6+ is the strong threat. Black is in trouble.} Rg7 {[%emt 0:00:23] [#]} 30. g6 {[%emt 0:00:00] The board is on fire.} ({White has to play} 30. Kh2 $1 $18 Rf8 31. b3 Qxb3 32. Qd3) 30... Rd8 $2 {[%emt 0:02:00][%mdl 8192]} (30... c6 $14) 31. Rxd8 {[%emt 0:00:00]} Kxd8 {[%emt 0:00:03]} 32. b3 {[%emt 0:00:00]} Qxb3 {[%emt 0:02:28]} 33. Qd3+ {[%emt 0:03:40]} Kc8 {[%emt 0:00:17]} (33... Bd4 $142 34. Rh8+ Kd7) 34. Rh8+ {[%emt 0:00:32]} Rg8 {[%emt 0:00:15]} 35. Rxg8+ {[%emt 0:00:17]} Qxg8 {[%emt 0:00:23]} 36. Qd5 {[%emt 0:00:09] White is clearly winning.} Qh8 {[%emt 0:01:37]} 37. Qf7 {[%emt 0:00:26] Hoping for g7.} Kb8 {[%emt 0:00:08]} 38. Qh7 {[%emt 0:01:56] Weighted Error Value: White=0.09 (flawless) /Black=0.51} 1-0

[Event "13th Dolomiti-Forni di Sopra-A 2022"]
[Site "Forni di Sopra"]
[Date "2022.06.19"]
[Round "9.5"]
[White "Ceschia, Ivano"]
[Black "Harshavardhan G B"]
[Result "0-1"]
[ECO "E60"]
[WhiteElo "2252"]
[BlackElo "2367"]
[Annotator "TA"]
[PlyCount "54"]
[EventDate "2022.06.13"]
[EventType "swiss"]
[EventCountry "ITA"]
[SourceTitle "playchess.com"]
[Source "ChessBase"]
[SourceQuality "1"]
[TimeControl "40/5400+30:1800+30"]

{[%evp 13,54,-5,-4,-13,-12,-21,-22,-29,-7,-39,-38,-41,-18,-29,-16,-18,-25,-20,-16,-10,0,0,0,0,0,0,0,-3,0,0,0,0,0,0,0,0,0,-76,-62,-81,-81,-389,-400]} 1. Nf3 {[%emt 0:01:06]} Nf6 {[%emt 0:01:10]} 2. d4 {[%emt 0:02:21]} c5 {[%emt 0:00:36]} 3. e3 {[%emt 0:02:02]} g6 {[%emt 0:00:04]} 4. Be2 {[%emt 1:27:01]} Bg7 {[%emt 0:00:05]} 5. O-O {[%emt 0:00:00]} O-O {[%emt 0:00:05]} 6. c4 {[%emt 0:00:00]} cxd4 {[%emt 0:00:06]} 7. exd4 {[%emt 0:00:00]} d5 {[%emt 0:00:16]} 8. Ne5 {[%emt 0:00:00] E60: King's Indian: Unusual lines and Fianchetto Variation without Nc3.} Nc6 {[%emt 0:00:09]} 9. Nxc6 {[%emt 0:00:00]} bxc6 {[%emt 0:00:05]} 10. Nc3 {[%emt 0:00:00] The position is equal.} Be6 {[%emt 0:00:31] [#]} 11. Qa4 $146 {[%emt 0:00:00]} ({Predecessor:} 11. c5 Qb8 12. Bf3 Bf5 13. Re1 e5 14. dxe5 Nd7 15. Bg4 Bxg4 16. Qxg4 Nxe5 17. Qg3 {0-1 (30) Ceschia,I (2259)-Amato,A (2339) Montesilvano 2021}) 11... Qc7 {[%emt 0:01:44]} 12. h3 {[%emt 0:00:00]} Rfd8 {[%emt 0:00:43]} 13. Be3 {[%emt 0:00:00]} dxc4 {[%emt 0:02:02]} 14. Bxc4 {[%emt 0:00:00]} Bxc4 {[%emt 0:00:04]} 15. Qxc4 {[%emt 0:00:00]} Qb7 {[%emt 0:00:05]} 16. b3 {[%emt 0:00:00]} Nd5 {[%emt 0:00:06]} 17. Rac1 {[%emt 0:00:00]} Rac8 {[%emt 0:00:39]} 18. Ne4 {[%emt 0:00:00]} Qb5 {[%emt 0:01:13]} 19. Rfd1 {[%emt 0:00:00]} h6 {[%emt 0:01:34]} 20. Nc3 {[%emt 0:00:44]} Qb7 {[%emt 0:06:48]} 21. Nxd5 {[%emt 0:00:18]} Rxd5 {[%emt 0:00:07][%cal Bd8d5,Bd5e5,Be5e3][%mdl 32]} 22. Qa4 {[%emt 0:00:26]} Qd7 {[%emt 0:00:32]} 23. Re1 {[%emt 0:00:55]} g5 {[%emt 0:00:37]} 24. Rc4 {[%emt 0:00:57]} f5 {[%emt 0:00:31]} 25. f3 {[%emt 0:01:07] [#]} (25. Qa6 $11) 25... e5 $1 $17 {[%emt 0:02:25][%cal Re5d4]} 26. dxe5 {[%emt 0:01:03]} Rxe5 {[%emt 0:00:06] And now ...Rce8 would win.} 27. Rcc1 $2 {[%emt 0:00:33][%mdl 8192] [#]} (27. Qa3 $17 {nothing else works.}) 27... Rxe3 $1 {[%emt 0:00:57][%mdl 512] Weighted Error Value: White=0.30/Black=0.04 (flawless)} 0-1